bitfinex/quotes_BTCUSD_20240901
["timestamp","ask_amount","ask_price","bid_price","bid_amount"]
[1725153792427,0.5339072,59128.0,59127.0,0.39071597]
[1725153792845,0.5339072,59128.0,59127.0,0.50636397]
[1725153794538,0.5339072,59128.0,59127.0,0.49213686]
[1725153795406,0.5339072,59128.0,59127.0,0.39071597]
[1725153797430,0.5339072,59128.0,59127.0,0.51727903]
[1725153798476,0.5339072,59128.0,59127.0,0.39071597]
[1725153799124,0.507373,59128.0,59127.0,0.39071597]
[1725153799801,0.845622,59128.0,59127.0,0.39072037]
[1725153802464,0.87215383,59128.0,59127.0,0.39072037]
[1725153804662,0.87215383,59128.0,59127.0,0.39162017]
[1725153804874,0.87297183,59128.0,59127.0,0.39162017]
[1725153805286,0.84644,59128.0,59127.0,0.39162017]
[1725153808453,0.87297336,59128.0,59127.0,0.39162017]
[1725153810039,0.87297336,59128.0,59127.0,0.39162028]
[1725153810497,1.25252236,59128.0,59127.0,0.39162028]
[1725153811395,1.25252236,59128.0,59127.0,0.38662028]
[1725153811641,1.25252236,59128.0,59127.0,0.39162028]
[1725153811854,1.59077136,59128.0,59127.0,0.49335534]
[1725153812307,1.25252236,59128.0,59127.0,0.49335534]
[1725153812539,1.25252236,59128.0,59127.0,0.39162028]
[1725153812981,1.25252236,59128.0,59127.0,0.49335534]
[1725153813400,1.25252236,59128.0,59127.0,0.39162028]
[1725153814290,1.21122236,59128.0,59127.0,0.39162028]
[1725153814569,1.184689,59128.0,59127.0,0.39162028]
[1725153814776,1.184689,59128.0,59127.0,0.39166825]
[1725153817788,1.21122431,59128.0,59127.0,0.39166825]
[1725153820100,1.21122431,59128.0,59127.0,0.39166268]
[1725153820732,1.36817231,59128.0,59127.0,0.46789438]
[1725153820937,1.44647231,59128.0,59127.0,0.0158998]
[1725153822896,1.36817231,59128.0,59127.0,0.0158998]
[1725153823113,1.32687231,59128.0,59127.0,0.0158998]
[1725153823336,1.32687231,59128.0,59127.0,0.46790414]
[1725153823337,1.21122431,59128.0,59127.0,0.46790414]
[1725153823554,1.21122431,59128.0,59127.0,0.09213238]
[1725153823973,1.23653337,59128.0,59127.0,0.09213238]
[1725153824611,1.23653337,59128.0,59127.0,0.4679011]
[1725153824814,1.23653337,59128.0,59127.0,0.46788302]
[1725153825275,1.23653337,59128.0,59127.0,0.09211724]
[1725153825478,1.23653337,59128.0,59127.0,0.46788304]
[1725153825694,1.23653337,59128.0,59127.0,0.09211724]
[1725153826771,1.23653337,59128.0,59127.0,0.0158998]
[1725153827230,1.23653337,59128.0,59127.0,0.09211724]
[1725153827442,1.23653337,59128.0,59127.0,0.46788288]
[1725153827648,1.21122431,59128.0,59127.0,0.09211724]
[1725153828524,1.21122431,59128.0,59127.0,0.46788339]
[1725153830099,1.21122431,59128.0,59127.0,0.46787282]
[1725153831155,1.21122431,59128.0,59127.0,0.39166139]
[1725153831372,0.87297531,59128.0,59127.0,0.39166139]
[1725153831587,0.87297531,59128.0,59127.0,0.63677663]
[1725153831801,0.84644,59128.0,59127.0,0.63677663]
[1725153832852,0.84644,59128.0,59127.0,0.53516139]
[1725153833059,0.508191,59128.0,59127.0,0.53516139]
[1725153833320,0.508191,59128.0,59127.0,0.63677315]
[1725153833711,0.508191,59128.0,59127.0,0.53516139]
[1725153833916,0.508191,59128.0,59127.0,0.63677406]
[1725153834588,0.508191,59128.0,59127.0,0.53516139]
[1725153834861,0.508191,59128.0,59127.0,0.63677653]
[1725153835076,0.508191,59128.0,59127.0,0.63676555]
[1725153835282,0.53472516,59128.0,59127.0,0.63676555]
[1725153835503,0.53472516,59128.0,59127.0,0.5351489]
[1725153835751,0.53472516,59128.0,59127.0,0.63676661]
[1725153836791,0.53472516,59128.0,59127.0,0.63677005]
[1725153836792,0.87297416,59128.0,59127.0,0.63677005]
[1725153837474,0.87297416,59128.0,59127.0,0.63677287]
[1725153837682,0.87297416,59128.0,59127.0,0.5351489]
[1725153838093,0.87297416,59128.0,59127.0,0.63677275]
[1725153838516,0.87297416,59128.0,59127.0,0.3916489]
[1725153838735,1.300337,59128.0,59127.0,0.49327679]
[1725153838948,1.300337,59128.0,59127.0,0.09212374]
[1725153839409,1.300337,59128.0,59127.0,0.0158998]
[1725153839646,1.400337,59128.0,59127.0,0.0058998]
[1725153839880,1.858586,59128.0,59127.0,0.05171683]
[1725153840571,1.858586,59128.0,59127.0,0.0008998]
[1725153842093,1.881586,59128.0,59127.0,0.0008998]
[1725153847427,1.9081234,59128.0,59127.0,0.0008998]
[1725153847887,2.8739134,59128.0,59127.0,0.0008998]
[1725153848539,2.88043367,59128.0,59127.0,0.0008998]
[1725153854192,2.67479467,59128.0,59127.0,0.0008998]
[1725153854418,2.53026967,59128.0,59127.0,0.0008998]
[1725153854628,2.40344767,59128.0,59127.0,0.0008998]
[1725153856343,2.35736967,59128.0,59127.0,0.0008998]
[1725153856555,2.25289267,59128.0,59127.0,0.0008998]
[1725153857628,1.184029,59120.0,59119.0,0.0633998]
[1725153858462,1.21056781,59120.0,59119.0,0.0633998]
[1725153859075,1.21056781,59120.0,59119.0,0.0663998]
[1725153859296,1.21056781,59120.0,59119.0,0.1449998]
[1725153859742,1.21056781,59120.0,59119.0,0.1439998]
[1725153860618,1.21056781,59120.0,59119.0,0.1409998]
[1725153860830,1.21056781,59120.0,59119.0,0.1439998]
[1725153861041,1.21056781,59120.0,59119.0,0.1469998]
[1725153861254,1.21056781,59120.0,59119.0,0.1409998]
[1725153861679,1.21056781,59120.0,59119.0,0.1439998]
[1725153862149,1.21056781,59120.0,59119.0,0.1469998]
[1725153862383,1.21056781,59120.0,59119.0,0.1519998]
[1725153862613,0.87227381,59120.0,59119.0,0.1519998]
[1725153862828,0.87227381,59120.0,59119.0,0.1578996]
[1725153863268,0.87227381,59120.0,59119.0,0.1548996]
[1725153863700,0.87327381,59120.0,59119.0,0.1578996]
[1725153864137,0.87427381,59120.0,59119.0,0.1648996]
[1725153865341,0.847735,59120.0,59119.0,0.1648996]
[1725153867229,0.847735,59120.0,59119.0,0.21565068]
[1725153867691,0.847735,59120.0,59119.0,0.1648996]
[1725153867904,0.847735,59120.0,59119.0,0.21565068]
[1725153868848,0.847735,59120.0,59119.0,0.1648996]
[1725153869083,0.847735,59120.0,59119.0,0.21565068]
[1725153869084,0.87427246,59120.0,59119.0,0.21565068]
[1725153869983,0.53597846,59120.0,59119.0,0.21565068]
[1725153870424,0.87427246,59120.0,59119.0,0.21565068]
[1725153870653,0.87427246,59120.0,59119.0,0.1648996]
[1725153870888,0.87427246,59120.0,59119.0,0.0862996]
[1725153871733,0.847735,59120.0,59119.0,0.0862996]
[1725153872758,0.87224863,59120.0,59119.0,0.0862996]
[1725153873792,1.21054263,59120.0,59119.0,0.0862996]
[1725153874004,0.87224863,59120.0,59119.0,0.0862996]
[1725153875030,0.8987867,59120.0,59119.0,0.0862996]
[1725153875251,1.2370807,59120.0,59119.0,0.0862996]
[1725153875634,0.847735,59120.0,59119.0,0.0862996]
[1725153875813,0.847735,59120.0,59119.0,0.1618996]
[1725153877118,0.87427369,59120.0,59119.0,0.1618996]
[1725153877326,0.87427369,59120.0,59119.0,0.2126671]
[1725153879004,0.87427369,59120.0,59119.0,0.21268467]
[1725153879218,0.847735,59120.0,59119.0,0.21268467]
[1725153879426,0.847735,59120.0,59119.0,0.1618996]
[1725153880322,0.847735,59120.0,59119.0,0.0862996]
[1725153880967,1.186029,59120.0,59119.0,0.0238998]
[1725153881175,0.847735,59120.0,59119.0,0.0238998]
[1725153881385,0.847735,59120.0,59119.0,0.07469238]
[1725153881597,0.847735,59120.0,59119.0,0.0238998]
[1725153881810,0.847735,59120.0,59119.0,0.07469238]
[1725153882234,0.847735,59120.0,59119.0,0.0238998]
[1725153882450,1.60731949,59120.0,59119.0,0.0138998]
[1725153882671,1.55838235,59120.0,59119.0,0.0138998]
[1725153883101,1.89667635,59120.0,59119.0,0.0138998]
[1725153884865,1.76650905,59120.0,59119.0,0.0138998]
[1725153886706,1.76732705,59120.0,59119.0,0.0138998]
[1725153889527,1.46787052,59120.0,59119.0,0.0138998]
[1725153890174,1.80616452,59120.0,59119.0,0.0138998]
[1725153892256,1.77962647,59120.0,59119.0,0.0138998]
[1725153893093,1.44133247,59120.0,59119.0,0.0138998]
[1725153894171,1.77962647,59120.0,59119.0,0.0138998]
[1725153894640,1.49429769,59120.0,59119.0,0.0138998]
[1725153894856,1.32515069,59120.0,59119.0,0.0138998]
[1725153895287,1.66344469,59120.0,59119.0,0.0138998]
[1725153895494,1.68998422,59120.0,59119.0,0.0138998]
[1725153898489,1.66344469,59120.0,59119.0,0.0138998]
[1725153901123,1.32515069,59120.0,59119.0,0.0138998]
[1725153901558,1.68998452,59120.0,59119.0,0.0138998]
[1725153904532,1.66344469,59120.0,59119.0,0.0138998]
[1725153905404,1.32515069,59120.0,59119.0,0.0138998]
[1725153905632,1.32515069,59120.0,59119.0,0.0791998]
[1725153906341,1.66344469,59120.0,59119.0,0.0791998]
[1725153907684,1.73338463,59120.0,59119.0,0.0138998]
[1725153908156,1.73990492,59120.0,59119.0,0.0138998]
[1725153908376,2.64442906,59120.0,59119.0,8e-07]
[1725153908578,2.18539892,59120.0,59119.0,8e-07]
[1725153908778,2.23451702,59120.0,59119.0,8e-07]
[1725153908978,2.25524376,59120.0,59119.0,8e-07]
[1725153909183,2.4237954,59120.0,59119.0,8e-07]
[1725153909804,2.35413152,59120.0,59119.0,8e-07]
[1725153910270,2.35413152,59120.0,59119.0,0.0009006]
[1725153910489,2.35413152,59120.0,59119.0,0.0008998]
[1725153910710,2.18557988,59120.0,59119.0,0.0008998]
[1725153910929,4.19979888,59120.0,59119.0,0.0008998]
[1725153912809,3.66241488,59120.0,59119.0,0.0008998]
[1725153913613,3.54164788,59120.0,59119.0,0.0008998]
[1725153913784,3.24596788,59120.0,59119.0,0.0008998]
[1725153916653,3.41451952,59120.0,59119.0,0.0008998]
[1725153917835,3.24596788,59120.0,59119.0,0.0008998]
[1725153918972,3.25275688,59120.0,59119.0,0.0008998]
[1725153919223,4.20952588,59120.0,59119.0,0.0008998]
[1725153920360,3.73826588,59120.0,59119.0,0.0008998]
[1725153922808,3.58818088,59120.0,59119.0,0.0008998]
[1725153923679,3.75673252,59120.0,59119.0,0.0008998]
[1725153928468,3.67453252,59120.0,59119.0,0.0008998]
[1725153929624,3.63113252,59120.0,59119.0,0.0008998]
[1725153930848,4.13858252,59120.0,59119.0,0.0008998]
[1725153939887,3.80036252,59120.0,59119.0,0.0008998]
[1725153945294,3.63181088,59120.0,59119.0,0.0008998]
[1725153954517,3.62981088,59120.0,59119.0,0.0008998]
[1725153954740,3.63181088,59120.0,59119.0,0.0008998]
[1725153957305,2.09457563,59120.0,59119.0,0.1444998]
[1725153957586,1.31119863,59120.0,59119.0,0.1444998]
[1725153958033,1.28465869,59120.0,59119.0,0.1444998]
[1725153958248,1.28465869,59120.0,59119.0,0.1494998]
[1725153958458,1.28165869,59120.0,59119.0,0.1494998]
[1725153958907,1.38265869,59120.0,59119.0,0.1574998]
[1725153959120,1.37965869,59120.0,59119.0,0.1524998]
[1725153959330,1.42859583,59120.0,59119.0,0.1524998]
[1725153959580,1.76788983,59120.0,59119.0,0.1604998]
[1725153960224,1.71895269,59120.0,59119.0,0.1604998]
[1725153960662,1.88117769,59120.0,59119.0,0.1604998]
[1725153961132,1.74195269,59120.0,59119.0,0.1604998]
[1725153961344,1.88414029,59120.0,59119.0,0.1604998]
[1725153961562,1.85760069,59120.0,59119.0,0.1604998]
[1725153962718,1.38065869,59120.0,59119.0,0.1604998]
[1725153964889,1.40719767,59120.0,59119.0,0.1604998]
[1725153965521,1.40719767,59120.0,59119.0,0.1654998]
[1725153966376,0.53680698,59120.0,59119.0,0.1704998]
[1725153966605,0.47020698,59120.0,59119.0,0.72874951]
[1725153966851,0.47020698,59120.0,59119.0,0.6779498]
[1725153967067,0.47020698,59120.0,59119.0,0.7494098]
[1725153967721,0.47102498,59120.0,59119.0,0.7494098]
[1725153967941,0.47002498,59120.0,59119.0,0.7414098]
[1725153968169,0.47002498,59120.0,59119.0,0.79215348]
[1725153968412,0.47002498,59120.0,59119.0,0.80615348]
[1725153968941,0.46902498,59120.0,59119.0,0.79815348]
[1725153969173,0.442486,59120.0,59119.0,0.7474098]
[1725153969896,0.442486,59120.0,59119.0,0.7614098]
[1725153975443,0.46902124,59120.0,59119.0,0.7614098]
[1725153977652,0.46902124,59120.0,59119.0,1.0997098]
[1725153977883,0.02735324,59120.0,59119.0,1.0997098]
[1725153978098,0.02735324,59120.0,59119.0,0.7614098]
[1725153979209,0.000818,59120.0,59119.0,0.7614098]
[1725153980552,0.000818,59120.0,59119.0,0.4231098]
[1725153982526,0.02735213,59120.0,59119.0,0.4231098]
[1725153983128,0.000818,59120.0,59119.0,0.4231098]
[1725153985176,0.000818,59120.0,59119.0,0.2539598]
[1725153985399,0.53479338,59120.0,59119.0,0.2539598]
[1725153990028,0.846553,59120.0,59119.0,0.2539598]
[1725153993451,0.87308811,59120.0,59119.0,0.2539598]
[1725154000460,0.87308811,59120.0,59119.0,0.30459886]
[1725154001634,0.87308811,59120.0,59119.0,0.2539598]
[1725154001848,0.19650011,59120.0,59119.0,0.2539598]
[1725154002081,0.508259,59120.0,59119.0,0.32991839]
[1725154002555,0.508259,59120.0,59119.0,0.62976196]
[1725154003476,0.508259,59120.0,59119.0,0.73133848]
[1725154004129,0.508259,59120.0,59119.0,0.62976196]
[1725154005278,0.508259,59120.0,59119.0,0.62974767]
[1725154005504,0.19650006,59120.0,59119.0,0.62974767]
[1725154006660,0.02735306,59120.0,59119.0,0.62974767]
[1725154007136,0.02735306,59120.0,59119.0,0.75673208]
[1725154008073,0.02735306,59120.0,59119.0,0.74273208]
[1725154008311,0.02735306,59120.0,59119.0,0.61574767]
[1725154008785,0.02735306,59120.0,59119.0,0.7428116]
[1725154009021,0.02735306,59120.0,59119.0,0.7288116]
[1725154009236,0.02735306,59120.0,59119.0,0.60174767]
[1725154009466,0.02735306,59120.0,59119.0,0.62974767]
[1725154009697,0.02735306,59120.0,59119.0,0.61574767]
[1725154010390,0.02735306,59120.0,59119.0,0.62974533]
[1725154011759,0.169145,59121.0,59120.0,0.0654]
[1725154011999,0.169145,59121.0,59120.0,0.61436032]
[1725154012234,0.169145,59121.0,59120.0,0.51264553]
[1725154012960,0.169145,59121.0,59120.0,0.52664553]
[1725154013188,0.169145,59121.0,59120.0,0.54064553]
[1725154014677,0.169145,59121.0,59120.0,0.54564553]
[1725154015529,0.169145,59121.0,59120.0,0.54564763]
[1725154016154,0.338273,59124.0,59120.0,0.54564763]
[1725154016364,0.169141,59122.0,59121.0,0.47752215]
[1725154016576,0.169141,59122.0,59121.0,0.54898215]
[1725154016817,0.169141,59122.0,59121.0,0.55398215]
[1725154017267,0.169141,59122.0,59121.0,0.54898215]
[1725154017503,1.18399,59122.0,59121.0,0.07646]
[1725154017725,1.28399,59122.0,59121.0,0.07646]
[1725154017943,1.34949,59122.0,59121.0,0.07646]
[1725154018882,1.37398413,59122.0,59121.0,0.09046]
[1725154019119,1.37398413,59122.0,59121.0,0.10446]
[1725154023381,1.37398413,59122.0,59121.0,0.10946]
[1725154026114,1.30848413,59122.0,59121.0,0.10946]
[1725154026319,1.28399,59122.0,59121.0,0.16031966]
[1725154026968,1.284808,59122.0,59121.0,0.16029866]
[1725154029150,1.284808,59122.0,59121.0,0.10946]
[1725154030241,1.284808,59122.0,59121.0,0.16029984]
[1725154030452,1.284808,59122.0,59121.0,0.10946]
[1725154031133,0.608242,59122.0,59121.0,0.62211634]
[1725154031364,0.608242,59122.0,59121.0,0.62211798]
[1725154031602,0.608242,59122.0,59121.0,0.54585881]
[1725154032291,0.269959,59122.0,59121.0,0.70381906]
[1725154032516,0.269959,59122.0,59121.0,0.62755881]
[1725154032731,0.608242,59122.0,59121.0,0.70381733]
[1725154032951,0.608242,59122.0,59121.0,0.62755881]
[1725154033610,0.608242,59122.0,59121.0,0.70381866]
[1725154033819,0.608242,59122.0,59121.0,0.32801985]
[1725154034024,0.946525,59122.0,59121.0,0.10946]
[1725154034248,1.284808,59122.0,59121.0,0.10946]
[1725154034897,1.284808,59122.0,59121.0,0.16030296]
[1725154036192,1.284808,59122.0,59121.0,0.10946]
[1725154036605,1.284808,59122.0,59121.0,0.16030296]
[1725154037448,1.284808,59122.0,59121.0,0.10946]
[1725154037654,1.284808,59122.0,59121.0,0.15030296]
[1725154037892,1.348608,59122.0,59121.0,0.09946]
[1725154038603,1.348608,59122.0,59121.0,0.1003598]
[1725154039763,1.348608,59122.0,59121.0,0.1053598]
[1725154040206,1.348608,59122.0,59121.0,0.1103598]
[1725154042109,1.284808,59122.0,59121.0,0.1103598]
[1725154043619,1.284808,59122.0,59121.0,0.1611981]
[1725154044774,1.284808,59122.0,59121.0,0.1103598]
[1725154046655,1.284808,59122.0,59121.0,0.1611981]
[1725154047497,1.284808,59122.0,59121.0,0.1103598]
[1725154047713,1.284808,59122.0,59121.0,0.1611901]
[1725154048823,1.284808,59122.0,59121.0,0.1103598]
[1725154049222,1.284808,59122.0,59121.0,0.16119038]
[1725154050518,1.284808,59122.0,59121.0,0.1103598]
[1725154051200,1.284808,59122.0,59121.0,0.16119407]
[1725154051422,1.284808,59122.0,59121.0,0.1103598]
[1725154052343,1.284808,59122.0,59121.0,0.16119628]
[1725154054280,1.284808,59122.0,59121.0,0.16119982]
[1725154054494,1.284808,59122.0,59121.0,0.1103598]
[1725154055151,1.284808,59122.0,59121.0,0.16120043]
[1725154055766,1.31134656,59122.0,59121.0,0.16120043]
[1725154056197,1.31134656,59122.0,59121.0,0.1103598]
[1725154056656,1.31134656,59122.0,59121.0,0.16120627]
[1725154057306,1.31134656,59122.0,59121.0,0.1103598]
[1725154057996,1.31134656,59122.0,59121.0,0.0388998]
[1725154058459,1.31134656,59122.0,59121.0,0.0248998]
[1725154058666,1.31134656,59122.0,59121.0,0.0328998]
[1725154059084,1.31134656,59122.0,59121.0,0.0188998]
[1725154059293,1.31134656,59122.0,59121.0,0.0108998]
[1725154059508,1.31134656,59122.0,59121.0,0.0278998]
[1725154059749,1.31134656,59122.0,59121.0,0.0198998]
[1725154060160,1.31134656,59122.0,59121.0,0.0108998]
[1725154060611,1.31134656,59122.0,59121.0,0.0198998]
[1725154061368,1.31134656,59122.0,59121.0,0.09617666]
[1725154061592,1.31134656,59122.0,59121.0,0.10517666]
[1725154063204,1.31134656,59122.0,59121.0,0.48099301]
[1725154064135,1.31134656,59122.0,59121.0,0.40471615]
[1725154064591,1.31134656,59122.0,59121.0,0.40471483]
[1725154069702,1.31134656,59122.0,59121.0,0.40471482]
[1725154070344,1.31134656,59122.0,59121.0,0.10521252]
[1725154070547,1.31134656,59122.0,59121.0,0.4810346]
[1725154070754,1.31134656,59122.0,59121.0,0.40472188]
[1725154070958,1.13687939,59122.0,59121.0,0.0288998]
[1725154071177,1.30602039,59122.0,59121.0,0.0288998]
[1725154071627,1.27948183,59122.0,59121.0,0.0288998]
[1725154072526,1.27948183,59122.0,59121.0,0.0108998]
[1725154072898,1.28029983,59122.0,59121.0,0.0188998]
[1725154073324,1.28029983,59122.0,59121.0,0.0268998]
[1725154073525,1.28029983,59122.0,59121.0,0.0188998]
[1725154074060,1.28029983,59122.0,59121.0,0.0268998]
[1725154074945,1.30683739,59122.0,59121.0,0.0188998]
[1725154075369,1.30683739,59122.0,59121.0,0.0268998]
[1725154080933,1.30683739,59122.0,59121.0,0.47904216]
[1725154081369,1.30683739,59122.0,59121.0,0.0268998]
[1725154081578,1.30683739,59122.0,59121.0,0.47904887]
[1725154081842,1.42248539,59122.0,59121.0,0.46904887]
[1725154082049,1.83412341,59122.0,59121.0,0.0168998]
[1725154082261,1.80758585,59122.0,59121.0,0.06778488]
[1725154082472,1.80758585,59122.0,59121.0,0.0168998]
[1725154083113,1.80073083,59122.0,59121.0,0.0168998]
[1725154085294,1.82585744,59122.0,59121.0,0.0168998]
[1725154085498,1.85239589,59122.0,59121.0,0.0168998]
[1725154088563,2.38223053,59122.0,59121.0,0.0168998]
[1725154089218,2.35569208,59122.0,59121.0,0.0168998]
[1725154089446,2.97524508,59122.0,59121.0,0.0168998]
[1725154089665,3.11164172,59122.0,59121.0,0.0168998]
[1725154089880,3.11164172,59122.0,59114.0,0.0008998]
[1725154089881,0.002,59115.0,59114.0,0.0008998]
[1725154090128,2.495473,59115.0,59114.0,0.0008998]
[1725154090369,3.534857,59115.0,59114.0,0.0008998]
[1725154090633,3.89618,59115.0,59114.0,0.0008998]
[1725154091103,3.411982,59115.0,59114.0,0.0008998]
[1725154091317,2.59524,59115.0,59114.0,0.0008998]
[1725154092495,2.62378496,59115.0,59114.0,0.0008998]
[1725154092723,2.63078496,59115.0,59114.0,0.0018998]
[1725154092949,2.62378496,59115.0,59114.0,0.0008998]
[1725154093864,2.65371988,59115.0,59114.0,0.0008998]
[1725154094375,2.65171988,59115.0,59114.0,0.0008998]
[1725154094623,2.30460388,59115.0,59114.0,0.0008998]
[1725154094845,3.11640988,59115.0,59114.0,0.0008998]
[1725154097469,2.75895588,59115.0,59114.0,0.0008998]
[1725154099173,2.73241092,59115.0,59114.0,0.0008998]
[1725154099889,2.90775156,59115.0,59114.0,0.0008998]
[1725154100144,2.9146142,59115.0,59114.0,0.0008998]
[1725154100366,2.96551258,59115.0,59114.0,0.0008998]
[1725154101777,2.74606256,59115.0,59114.0,0.0008998]
[1725154105610,2.74806256,59115.0,59114.0,0.0008998]
[1725154108500,2.41869692,59115.0,59114.0,0.0008998]
[1725154108743,2.53434492,59115.0,59114.0,0.0008998]
[1725154109193,2.52934492,59115.0,59114.0,0.0008998]
[1725154109688,2.53334492,59115.0,59114.0,0.0008998]
[1725154109891,2.52934492,59115.0,59114.0,0.0008998]
[1725154110106,2.53334492,59115.0,59114.0,0.0008998]
[1725154110747,2.46524492,59115.0,59114.0,0.0008998]
[1725154111203,2.46924492,59115.0,59114.0,0.0008998]
[1725154111639,2.46524492,59115.0,59114.0,0.0008998]
[1725154111870,2.46924492,59115.0,59114.0,0.0008998]
[1725154116050,2.33015492,59115.0,59114.0,0.0008998]
[1725154116909,2.77760792,59115.0,59114.0,0.0008998]
[1725154123404,2.70692192,59115.0,59114.0,0.0008998]
[1725154123610,2.64522192,59115.0,59114.0,0.0008998]
[1725154130574,2.77482192,59115.0,59114.0,0.0008998]
[1725154133096,2.32652492,59115.0,59114.0,0.0008998]
[1725154138123,2.39538839,59115.0,59114.0,0.0008998]
[1725154138334,2.56394003,59115.0,59114.0,0.0008998]
[1725154138761,2.56594003,59115.0,59114.0,0.0008998]
[1725154139464,2.56194003,59115.0,59114.0,0.0008998]
[1725154139681,2.56194003,59115.0,59114.0,0.0018998]
[1725154140110,2.56594003,59115.0,59114.0,0.0008998]
[1725154140319,2.55594003,59115.0,59114.0,0.0008998]
[1725154140549,2.57494003,59115.0,59114.0,0.0018998]
[1725154141011,2.57694003,59115.0,59114.0,0.0018998]
[1725154141240,2.57494003,59115.0,59114.0,0.0018998]
[1725154141461,2.57694003,59115.0,59114.0,0.0018998]
[1725154143151,2.57494003,59115.0,59114.0,0.0018998]
[1725154145879,2.51294003,59115.0,59114.0,0.0018998]
[1725154146096,3.02043003,59115.0,59114.0,0.0018998]
[1725154146779,2.85187839,59115.0,59114.0,0.0018998]
[1725154149131,2.85387839,59115.0,59114.0,0.0018998]
[1725154149353,2.85187839,59115.0,59114.0,0.0018998]
[1725154151633,2.85687839,59115.0,59114.0,0.0018998]
[1725154151857,3.25910139,59115.0,59114.0,0.0018998]
[1725154152333,3.42765303,59115.0,59114.0,0.0018998]
[1725154153029,3.42965303,59115.0,59114.0,0.0018998]
[1725154154467,3.42965303,59115.0,59114.0,8e-07]
[1725154154904,3.24227603,59115.0,59114.0,8e-07]
[1725154155134,3.26882157,59115.0,59114.0,8e-07]
[1725154155829,3.26882157,59115.0,59100.0,0.061]
[1725154155830,0.169201,59101.0,59100.0,0.061]
[1725154156050,2.415009,59101.0,59100.0,0.061]
[1725154156267,2.54309,59101.0,59100.0,0.061]
[1725154156679,3.92324985,59101.0,59100.0,0.061]
[1725154157098,3.92324985,59101.0,59100.0,0.067]
[1725154157294,3.92424985,59101.0,59100.0,0.006]
[1725154157447,3.92524985,59101.0,59100.0,0.012]
[1725154157664,4.09380149,59101.0,59100.0,0.012]
[1725154161017,4.06725364,59101.0,59100.0,0.012]
[1725154161699,4.09266254,59101.0,59100.0,0.012]
[1725154162192,3.9241109,59101.0,59100.0,0.012]
[1725154165088,3.7549099,59101.0,59100.0,0.012]
[1725154165311,3.7549099,59101.0,59100.0,0.0128998]
[1725154165312,3.9241109,59101.0,59100.0,0.0128998]
[1725154173924,3.1393429,59101.0,59100.0,0.0128998]
[1725154174134,3.1393429,59101.0,59100.0,0.0793998]
[1725154176341,2.6347629,59101.0,59100.0,0.0793998]
[1725154176550,2.9060339,59101.0,59100.0,0.0793998]
[1725154177734,2.2971779,59101.0,59100.0,0.0793998]
[1725154179484,2.2971779,59101.0,59100.0,0.1612998]
[1725154182069,1.9357749,59101.0,59100.0,0.1612998]
[1725154187925,1.4817239,59101.0,59100.0,0.1662998]
[1725154188140,1.456315,59101.0,59100.0,0.1662998]
[1725154189227,1.454315,59101.0,59100.0,0.1542998]
[1725154189450,1.455315,59101.0,59100.0,0.1602998]
[1725154189691,1.456315,59101.0,59100.0,0.1692998]
[1725154190121,1.455315,59101.0,59100.0,0.1632998]
[1725154190341,1.456315,59101.0,59100.0,0.1722998]
[1725154191427,1.117912,59101.0,59100.0,0.1722998]
[1725154191640,1.117912,59101.0,59100.0,0.1772998]
[1725154192539,1.456315,59101.0,59100.0,0.1772998]
[1725154192780,1.117912,59101.0,59100.0,0.1772998]
[1725154193435,1.456315,59101.0,59100.0,0.1772998]
[1725154194309,1.117912,59101.0,59100.0,0.1772998]
[1725154194745,1.456315,59101.0,59100.0,0.1772998]
[1725154194966,1.117912,59101.0,59100.0,0.1772998]
[1725154195791,0.779509,59101.0,59100.0,0.1772998]
[1725154196211,0.610308,59101.0,59100.0,0.1772998]
[1725154196428,0.610308,59101.0,59100.0,0.79859622]
[1725154196863,0.610308,59101.0,59100.0,0.82398449]
[1725154197079,0.610308,59101.0,59100.0,0.82397331]
[1725154197284,0.610308,59101.0,59100.0,0.72241337]
[1725154197722,0.610308,59101.0,59100.0,0.55320937]
[1725154197938,0.610308,59101.0,59100.0,0.1772998]
[1725154198161,1.571963,59101.0,59100.0,0.1772998]
[1725154198380,1.456315,59101.0,59100.0,0.2280755]
[1725154199064,1.2247403,59101.0,59100.0,0.1772998]
[1725154202546,1.6787913,59101.0,59100.0,0.1772998]
[1725154205143,1.6787913,59101.0,59100.0,0.1672998]
[1725154205392,1.70339162,59101.0,59100.0,0.1672998]
[1725154205851,1.72993768,59101.0,59100.0,0.1672998]
[1725154208449,1.72993768,59101.0,59100.0,0.0188998]
[1725154211324,2.15288068,59101.0,59100.0,0.0188998]
[1725154211545,2.38092768,59101.0,59100.0,0.0188998]
[1725154211792,2.21588068,59101.0,59100.0,0.0188998]
[1725154214403,2.15288068,59101.0,59100.0,0.0188998]
[1725154220146,2.12633462,59101.0,59100.0,0.0188998]
[1725154223712,2.90654262,59101.0,59100.0,0.0188998]
[1725154223948,2.96407662,59101.0,59100.0,0.0188998]
[1725154224160,3.03829598,59101.0,59100.0,0.0188998]
[1725154224411,3.04987662,59101.0,59100.0,0.0188998]
[1725154225877,3.04787662,59101.0,59100.0,0.0008998]
[1725154226251,3.04787662,59101.0,59100.0,0.0048998]
[1725154227720,3.04787662,59101.0,59100.0,0.0088998]
[1725154228383,3.13183148,59101.0,59100.0,0.0088998]
[1725154228589,3.20933148,59101.0,59100.0,0.0088998]
[1725154228815,3.12537662,59101.0,59100.0,0.0088998]
[1725154229028,3.10858811,59101.0,59100.0,0.0088998]
[1725154230656,3.10858811,59101.0,59100.0,0.0048998]
[1725154230926,3.10858811,59101.0,59100.0,0.0078998]
[1725154231377,3.10858811,59101.0,59100.0,0.0038998]
[1725154231806,3.10858811,59101.0,59100.0,0.0068998]
[1725154232243,3.26737684,59101.0,59100.0,0.0068998]
[1725154235722,3.26737684,59101.0,59100.0,0.0038998]
[1725154236152,3.27737684,59101.0,59100.0,0.0048998]
[1725154236676,3.27737684,59101.0,59100.0,0.0018998]
[1725154236887,3.27537684,59101.0,59100.0,0.0018998]
[1725154237108,3.28537684,59101.0,59100.0,0.0028998]
[1725154237368,3.04108811,59101.0,59100.0,0.0018998]
[1725154238036,3.05108811,59101.0,59100.0,0.0028998]
[1725154239150,2.98828811,59101.0,59100.0,0.0028998]
[1725154240923,2.87264011,59101.0,59100.0,0.0028998]
[1725154241154,2.98828811,59101.0,59100.0,0.0028998]
[1725154242263,2.98828811,59101.0,59100.0,0.0640998]
[1725154242264,2.51123711,59101.0,59100.0,0.0640998]
[1725154242484,2.01189811,59101.0,59100.0,0.0640998]
[1725154242711,1.57349511,59101.0,59100.0,0.0640998]
[1725154242924,1.57349511,59101.0,59100.0,0.1436998]
[1725154243146,1.68914311,59101.0,59100.0,0.1436998]
[1725154243370,1.41710664,59101.0,59100.0,0.1436998]
[1725154244041,1.50710664,59101.0,59100.0,0.1426998]
[1725154244252,1.50710664,59101.0,59100.0,0.1436998]
[1725154244467,1.50710664,59101.0,59100.0,0.1426998]
[1725154244468,1.49710664,59101.0,59100.0,0.1426998]